bitfinex-derivatives/quotes_SOLF0:USTF0_20250730
["timestamp","ask_amount","ask_price","bid_price","bid_amount"]
[1753879841372,5.6376,177.39,177.38,3.11]
[1753879845073,0.78,177.38,177.35,3.11]
[1753879845276,5.39442624,177.38,177.35,3.11]
[1753879845780,4.61442624,177.38,177.32,5.6396]
[1753879845976,0.78,177.37,177.3,3.11]
[1753879846283,5.6388,177.35,177.32,5.6396]
[1753879846470,4.61442624,177.36,177.3,3.11]
[1753879846673,5.39442624,177.36,177.3,3.11]
[1753879846874,4.61442624,177.36,177.31,5.64]
[1753879847078,5.39442624,177.34,177.32,3.11]
[1753879847573,5.6394,177.33,177.32,3.11]
[1753879848668,11.03362624,177.34,177.32,3.11]
[1753879848873,10.25362624,177.34,177.33,3.11]
[1753879852175,4.61442624,177.34,177.33,3.11]
[1753879852375,5.6388,177.35,177.26,3.11]
[1753879852574,4.61442624,177.34,177.26,3.11]
[1753879852878,4.61442624,177.32,177.26,3.11]
[1753879853074,5.39442624,177.3,177.27,3.11]
[1753879853269,0.78,177.29,177.27,3.11]
[1753879853470,0.78,177.29,177.25,106.34]
[1753879853679,4.61442624,177.3,177.28,3.11]
[1753879853982,4.61442624,177.34,177.26,3.11]
[1753879854378,4.61442624,177.34,177.29,3.11]
[1753879854879,4.61442624,177.34,177.25,110.95442624]
[1753879854880,2.83526958,177.39,177.21,2.83526958]
[1753879855079,2.83526958,177.29,177.22,3.11]
[1753879855286,2.83526958,177.29,177.26,5.6413]
[1753879855583,2.83526958,177.29,177.28,3.11]
[1753879855973,2.83526958,177.31,177.28,3.11]
[1753879856180,2.83526958,177.31,177.23,3.11]
[1753879856483,5.6418,177.26,177.23,3.11]
[1753879856684,3.61526958,177.29,177.23,3.11]
[1753879857183,5.6415,177.27,177.24,3.13]
[1753879857378,0.79,177.27,177.25,3.13]
[1753879857681,5.6418,177.26,177.2,109.15526958]
[1753879858082,5.6418,177.26,177.22,5.6426]
[1753879858285,5.6418,177.26,177.23,3.13]
[1753879858885,5.6414,177.27,177.23,8.7725]
[1753879859078,5.6414,177.27,177.24,3.13]
[1753879859475,10.26445898,177.29,177.24,3.13]
[1753879859675,5.41355898,177.33,177.24,3.13]
[1753879859873,4.62355898,177.33,177.24,3.13]
[1753879861583,5.6402,177.31,177.27,5.6411]
[1753879861785,5.6402,177.31,177.28,3.13]
[1753879862380,5.6398,177.32,177.29,3.13]
[1753879862583,5.6398,177.32,177.28,5.6409]
[1753879862781,4.62355898,177.35,177.29,3.13]
[1753879863287,5.6403,177.3,177.29,3.13]
[1753879863486,4.62355898,177.31,177.2,110.94355898]
[1753879863684,0.79,177.3,177.21,3.13]
[1753879863883,0.79,177.3,177.2,110.94355898]
[1753879863884,5.6412,177.28,177.24,3.13]
[1753879864089,4.62355898,177.29,177.24,3.13]
[1753879864489,10.26455898,177.29,177.25,5.6418]
[1753879864689,10.26455898,177.29,177.26,3.13]
[1753879865090,5.6411,177.28,177.27,3.13]
[1753879865685,5.6414,177.27,177.25,3.13]
[1753879865984,5.6414,177.27,177.26,3.13]
[1753879866986,4.62355898,177.29,177.2,110.94355898]
[1753879866987,5.642,177.25,177.21,3.13]
[1753879867286,0.79,177.28,177.21,3.13]
[1753879867485,5.6427,177.23,177.21,3.13]
[1753879867690,5.6427,177.23,177.22,3.13]
[1753879868394,5.6431,177.22,177.2,3.13]
[1753879868588,5.6431,177.22,177.21,3.13]
[1753879869188,0.79,177.22,177.16,3.13]
[1753879870493,5.41355898,177.25,177.16,3.13]
[1753879870991,5.6428,177.23,177.19,5.6436]
[1753879871192,5.41355898,177.25,177.2,3.13]
[1753879871688,5.6426,177.23,177.2,3.13]
[1753879871889,0.79,177.29,177.21,3.13]
[1753879872091,4.33247673,177.28,177.21,3.13]
[1753879872289,4.33247673,177.27,177.21,3.13]
[1753879872488,0.79,177.29,177.21,3.13]
[1753879872690,4.33213151,177.28,177.21,3.13]
[1753879872890,5.6415,177.27,177.21,3.13]
[1753879873794,5.6415,177.27,177.23,5.6423]
[1753879873995,5.41355898,177.3,177.21,3.13]
[1753879874296,4.33337233,177.29,177.21,3.13]
[1753879874494,9.97437233,177.28,177.23,5.6425]
[1753879874699,5.641,177.28,177.24,3.13]
[1753879874996,5.6402,177.31,177.26,5.6415]
[1753879875194,4.33552859,177.3,177.27,3.13]
[1753879875396,5.6402,177.31,177.27,3.13]
[1753879875692,4.33567087,177.3,177.25,5.6417]
[1753879875890,0.79,177.32,177.26,3.13]
[1753879876088,5.1256714,177.31,177.26,3.13]
[1753879876297,4.3356714,177.3,177.26,3.13]
[1753879876490,9.9760714,177.3,177.26,8.7713]
[1753879876692,0.79,177.31,177.26,3.13]
[1753879876893,4.33632339,177.3,177.26,3.13]
[1753879877090,6.4302,177.31,177.27,5.6412]
[1753879877293,4.33632236,177.3,177.28,3.13]
[1753879877590,4.33632236,177.3,177.27,5.6412]
[1753879877591,4.71366594,177.34,177.27,3.13]
[1753879877799,0.79,177.4,177.31,3.13]
[1753879877992,0.79,177.4,177.33,3.13]
[1753879878195,6.4264,177.43,177.38,5.6376]
[1753879878391,4.33507862,177.42,177.39,3.13]
[1753879878702,0.79,177.45,177.4,3.13]
[1753879878894,0.79,177.47,177.4,3.13]
[1753879879094,4.33533843,177.46,177.4,3.13]
[1753879879303,4.33640944,177.45,177.43,3.13]
[1753879879600,0.79,177.51,177.43,3.13]
[1753879879803,4.33373066,177.5,177.43,3.13]
[1753879880098,5.41355898,177.53,177.45,3.13]
[1753879880298,4.33351127,177.52,177.47,5.6349]
[1753879880498,4.33351127,177.51,177.48,3.13]
[1753879880694,5.41355898,177.53,177.44,4.62355898]
[1753879880901,9.96393175,177.52,177.5,3.13]
[1753879881197,4.33053175,177.51,177.5,3.13]
[1753879881395,5.6334,177.52,177.5,3.13]
[1753879881601,0.79,177.55,177.47,3.13]
[1753879881801,4.32678841,177.54,177.48,4.62355898]
[1753879882003,5.41355898,177.58,177.49,3.13]
[1753879882194,5.6326,177.55,177.5,3.13]
[1753879883198,5.6328,177.54,177.5,3.13]
[1753879883599,4.62355898,177.58,177.5,3.13]
[1753879883899,5.6328,177.54,177.5,3.13]
[1753879885092,5.6324,177.55,177.5,3.13]
[1753879885301,0.79,177.58,177.5,7.75355898]
[1753879885500,0.79,177.58,177.51,3.13]
[1753879886000,5.6326,177.55,177.51,3.13]
[1753879886302,0.79,177.58,177.51,3.13]
[1753879888106,0.78,177.62,177.44,3.02]
[1753879888404,4.62355898,177.52,177.44,3.02]
[1753879888604,5.6342,177.5,177.45,5.6354]
[1753879888805,4.62355898,177.52,177.46,3.02]
[1753879889101,4.70781949,177.61,177.43,4.62355898]
[1753879889102,5.635,177.47,177.43,3.02]
[1753879889305,0.78,177.5,177.42,3.02]
[1753879889605,4.62355898,177.5,177.42,3.02]
[1753879890105,5.6345,177.49,177.44,3.02]
[1753879891502,5.6347,177.48,177.44,3.02]
[1753879892505,5.6344,177.49,177.44,3.02]
[1753879892702,5.6344,177.49,177.45,3.02]
[1753879894201,5.6346,177.48,177.43,5.636]
[1753879894404,5.6346,177.48,177.46,3.02]
[1753879894809,5.6346,177.48,177.43,5.636]
[1753879895010,5.6346,177.48,177.44,3.02]
[1753879896007,5.6343,177.49,177.45,3.02]
[1753879896204,4.62355898,177.5,177.41,4.62355898]
[1753879896408,5.6349,177.47,177.42,8.6562]
[1753879896613,5.6349,177.47,177.43,3.02]
[1753879896914,0.78,177.49,177.43,3.02]
[1753879897111,5.6346,177.48,177.43,8.6559]
[1753879897303,0.78,177.47,177.4,3.02]
[1753879897810,5.40355898,177.46,177.4,3.02]
[1753879898212,5.6364,177.43,177.4,3.02]
[1753879898410,5.6364,177.43,177.41,3.02]
[1753879898914,5.40355898,177.46,177.37,3.02]
[1753879899413,5.6361,177.44,177.4,3.02]
[1753879899811,11.03885898,177.46,177.36,4.62355898]
[1753879900010,5.40355898,177.48,177.42,3.02]
[1753879900414,5.6351,177.47,177.43,3.02]
[1753879900808,6.4151,177.47,177.43,3.02]
[1753879901209,6.4151,177.47,177.45,3.02]
[1753879901409,4.62355898,177.46,177.39,3.02]
[1753879901712,0.78,177.45,177.39,3.02]
[1753879901906,5.6363,177.43,177.39,5.6372]
[1753879902210,0.78,177.45,177.42,3.02]
[1753879902413,4.62355898,177.46,177.43,3.02]
[1753879902622,4.62355898,177.46,177.37,3.02]
[1753879903115,4.62355898,177.46,177.42,5.6362]
[1753879903413,4.62355898,177.48,177.43,3.02]
[1753879903609,5.6349,177.47,177.44,5.6358]
[1753879903915,5.6349,177.47,177.46,3.02]
[1753879904714,5.6349,177.47,177.43,3.02]
[1753879904909,10.25895898,177.46,177.44,3.02]
[1753879905118,0.78,177.44,177.33,3.02]
[1753879905412,4.62355898,177.37,177.27,4.62355898]
[1753879905712,4.62355898,177.37,177.36,3.02]
[1753879906215,4.62355898,177.37,177.34,3.02]
[1753879906418,0.78,177.36,177.34,3.02]
[1753879906616,4.62355898,177.35,177.34,3.02]
[1753879907813,4.62355898,177.37,177.34,3.02]
[1753879909315,4.62355898,177.35,177.28,3.02]
[1753879909819,0.78,177.34,177.26,3.02]
[1753879910013,4.62355898,177.33,177.26,3.02]
[1753879910216,0.78,177.32,177.26,3.02]
[1753879910409,4.62355898,177.34,177.26,3.02]
[1753879910616,4.62355898,177.36,177.26,3.02]
[1753879911126,4.62355898,177.36,177.32,3.02]
[1753879911315,4.62355898,177.38,177.32,3.02]
[1753879912124,0.78,177.37,177.34,3.02]
[1753879912518,0.78,177.37,177.35,3.02]
[1753879912719,4.62355898,177.4,177.34,3.02]
[1753879913020,0.78,177.41,177.34,3.02]
[1753879913226,4.62355898,177.42,177.34,3.02]
[1753879913623,10.26005898,177.42,177.37,3.02]
[1753879913817,11.04005898,177.42,177.37,3.02]
[1753879914222,11.04005898,177.42,177.33,4.62355898]
[1753879914223,11.04005898,177.42,177.35,5.6387]
[1753879914423,11.04005898,177.42,177.36,3.02]
[1753879915527,4.62355898,177.44,177.37,3.02]
[1753879915725,0.78,177.45,177.37,3.02]
[1753879916123,6.4156,177.45,177.38,5.6377]
[1753879916425,6.4156,177.45,177.39,3.02]
[1753879916822,0.78,177.45,177.4,3.02]
[1753879917226,6.4156,177.45,177.4,3.02]
[1753879917530,0.78,177.45,177.4,3.02]
[1753879917722,4.62355898,177.46,177.41,3.04]
[1753879917926,5.6349,177.47,177.41,3.04]
[1753879918323,4.31335831,177.46,177.41,3.04]
[1753879918521,5.6349,177.47,177.41,3.04]
[1753879918723,5.09335831,177.46,177.41,3.04]
[1753879919025,4.62355898,177.46,177.38,3.04]
[1753879919219,0.78,177.43,177.35,3.04]
[1753879919425,0.78,177.41,177.35,3.04]
[1753879919626,0.78,177.39,177.35,3.04]
[1753879919827,9.44162335,177.5,177.32,106.04]
[1753879919828,0.78,177.38,177.36,3.04]
[1753879920030,6.4181,177.38,177.34,3.04]
[1753879920232,0.78,177.38,177.33,3.04]
[1753879920427,0.78,177.39,177.33,3.04]
[1753879920627,6.4177,177.39,177.33,3.04]
[1753879920820,0.78,177.39,177.33,3.04]
[1753879921231,6.418,177.38,177.34,3.04]
[1753879921432,6.418,177.38,177.35,3.04]
[1753879921632,0.78,177.37,177.32,3.04]
[1753879921835,0.78,177.36,177.33,3.04]
[1753879922230,0.78,177.37,177.33,3.04]
[1753879922435,0.78,177.37,177.3,347.38]
[1753879922630,5.6387,177.35,177.31,3.04]
[1753879922828,5.6387,177.35,177.3,347.38]
[1753879922829,5.6387,177.35,177.32,3.04]
[1753879923335,6.4184,177.36,177.33,3.04]
[1753879923836,6.4184,177.36,177.34,3.04]
[1753879924340,0.78,177.35,177.27,3.04]
[1753879925234,5.6391,177.34,177.28,5.6409]
[1753879925435,5.6391,177.34,177.29,3.04]
[1753879925740,4.62355898,177.36,177.29,3.04]
[1753879925936,4.62355898,177.36,177.31,3.04]
[1753879926139,5.40355898,177.36,177.31,3.04]
[1753879926537,5.639,177.35,177.31,3.04]
[1753879928731,4.62355898,177.38,177.31,3.04]
[1753879928935,4.32309558,177.37,177.31,3.04]
[1753879929137,4.62355898,177.38,177.31,3.04]
[1753879929340,5.6378,177.38,177.32,5.6395]
[1753879929540,4.62355898,177.4,177.33,3.04]
[1753879929737,4.62355898,177.42,177.33,3.04]
[1753879929944,0.78,177.44,177.35,3.04]
[1753879930238,4.32271942,177.43,177.37,3.04]
[1753879930434,4.32271942,177.42,177.39,3.04]
[1753879930632,4.62355898,177.44,177.39,3.04]
[1753879930937,4.32451675,177.43,177.35,3.04]
[1753879931141,0.78,177.44,177.35,3.04]
[1753879931443,4.3249619,177.43,177.35,3.04]
[1753879931744,5.6367,177.42,177.37,3.04]
[1753879932845,5.6367,177.42,177.37,8.6779]
[1753879933038,5.6362,177.43,177.38,3.04]
[1753879933342,10.07736233,177.47,177.38,3.04]
[1753879933545,5.6361,177.44,177.39,5.6372]
[1753879933738,5.6361,177.44,177.4,3.04]
[1753879934539,5.6362,177.43,177.38,5.6376]
[1753879934848,5.6362,177.43,177.42,3.04]
[1753879935746,5.6359,177.44,177.43,3.04]
[1753879935948,0.78,177.46,177.37,4.62355898]
[1753879936251,0.78,177.46,177.44,3.04]
[1753879936649,5.636,177.44,177.4,3.04]
[1753879937645,5.40355898,177.49,177.4,3.04]
[1753879937851,4.33391406,177.48,177.4,3.04]
[1753879938046,4.33391406,177.47,177.4,3.04]
[1753879938246,5.40355898,177.49,177.4,3.04]
[1753879938451,4.33524499,177.48,177.42,5.6365]
[1753879938652,4.33524499,177.47,177.43,3.04]
[1753879938862,5.40355898,177.49,177.43,3.04]
[1753879939047,4.33495443,177.48,177.43,3.04]
[1753879939245,4.33495443,177.47,177.43,3.04]
[1753879939447,0.78,177.48,177.43,3.04]
[1753879939652,4.33590823,177.47,177.42,3.04]
[1753879939853,4.62355898,177.49,177.39,4.62355898]
[1753879940155,5.6358,177.45,177.44,3.04]
[1753879940854,6.4158,177.45,177.4,5.637]
[1753879941057,5.6359,177.44,177.43,3.04]
[1753879941854,0.78,177.47,177.42,3.04]
[1753879942051,4.33847433,177.46,177.42,3.04]
[1753879942252,4.62355898,177.49,177.42,3.04]
[1753879942455,4.33973587,177.48,177.42,3.04]
[1753879942657,4.33973587,177.47,177.42,3.04]
[1753879942949,5.6348,177.48,177.43,5.6359]
[1753879943154,4.3393897,177.47,177.44,3.04]
[1753879943353,9.29736233,177.51,177.41,4.62355898]
[1753879943550,5.6351,177.47,177.46,3.04]
[1753879943856,4.62355898,177.47,177.4,3.04]
[1753879944151,0.78,177.46,177.4,3.04]
[1753879944656,4.62355898,177.45,177.38,3.04]
[1753879944849,0.78,177.44,177.38,3.04]
[1753879945046,5.6374,177.39,177.36,105.94]
[1753879945254,105.94,177.48,177.33,3.04]
[1753879945450,5.6383,177.37,177.33,8.6792]
[1753879945656,5.6383,177.37,177.34,3.04]
[1753879946052,5.6379,177.38,177.34,3.04]
[1753879946252,5.40355898,177.4,177.33,5.6392]
[1753879946456,5.40355898,177.4,177.34,3.04]
[1753879946859,5.40355898,177.4,177.34,5.639]
[1753879947058,0.78,177.39,177.37,3.03]
[1753879947258,5.41355898,177.4,177.37,3.03]
[1753879947650,5.6379,177.38,177.37,3.03]
[1753879947851,5.41355898,177.4,177.34,3.03]
[1753879948560,5.638,177.38,177.35,3.03]
[1753879948861,5.41355898,177.4,177.37,3.03]
[1753879949059,17.56441556,177.47,177.36,5.6382]
[1753879949060,4.62355898,177.42,177.36,5.6382]
[1753879949258,4.62355898,177.42,177.37,3.03]
[1753879949759,5.6371,177.4,177.38,3.03]
[1753879949958,5.6371,177.4,177.39,3.03]
[1753879953761,4.62355898,177.44,177.4,3.03]
[1753879953961,4.34527289,177.43,177.4,3.03]
[1753879954156,4.34527289,177.42,177.4,8.6669]
[1753879954365,5.41355898,177.48,177.4,3.03]
[1753879954366,10.08736233,177.48,177.4,3.03]
[1753879954657,5.6357,177.45,177.41,5.6368]
[1753879954963,4.34509239,177.44,177.42,3.03]
[1753879955158,5.6354,177.46,177.42,3.03]
[1753879955363,5.13492412,177.45,177.37,7.65355898]
[1753879955661,4.34492412,177.44,177.38,3.03]
[1753879955866,0.79,177.47,177.38,3.03]
[1753879956062,0.79,177.45,177.38,3.03]
[1753879956263,5.6364,177.43,177.39,5.6373]
[1753879956469,5.6364,177.43,177.4,3.03]
[1753879956765,5.6361,177.44,177.4,5.637]
[1753879956966,4.62355898,177.46,177.41,3.03]
[1753879957263,4.34627641,177.45,177.41,3.03]
[1753879957465,4.62355898,177.46,177.39,5.6373]
[1753879957466,5.6363,177.43,177.39,5.6373]
[1753879957658,5.6363,177.43,177.4,3.03]
[1753879960268,5.6363,177.43,177.38,2.83165033]
[1753879960468,5.6363,177.43,177.41,3.03]
[1753879961258,3.62165033,177.48,177.4,2.83165033]
[1753879961460,4.34593125,177.47,177.41,3.03]
[1753879961665,4.34593125,177.46,177.41,3.03]
[1753879961867,5.636,177.44,177.41,3.03]
[1753879962169,0.79,177.47,177.42,3.03]
[1753879962366,5.6357,177.45,177.42,3.03]
[1753879963470,5.6354,177.46,177.42,8.6664]
[1753879963670,0.79,177.47,177.43,3.03]
[1753879963969,5.13560084,177.46,177.44,3.03]
[1753879964164,0.79,177.46,177.44,3.03]
[1753879964570,5.6358,177.45,177.44,3.03]
[1753879965269,5.6354,177.46,177.41,3.03]
[1753879965670,5.6354,177.46,177.44,3.03]
[1753879965867,5.6355,177.45,177.44,3.03]
[1753879966368,5.6354,177.46,177.43,3.03]
[1753879966967,5.6355,177.45,177.43,3.03]
[1753879967669,2.83165033,177.5,177.43,3.03]
[1753879967870,4.67380335,177.54,177.47,3.03]
[1753879968165,5.6335,177.52,177.49,5.6342]
[1753879968370,5.6335,177.52,177.5,3.03]
[1753879968773,5.6331,177.53,177.51,3.03]
[1753879968971,5.6331,177.53,177.52,3.03]
[1753879969170,9.9761296,177.53,177.52,3.03]
[1753879969372,5.6331,177.53,177.52,3.03]
[1753879969564,0.79,177.53,177.49,3.03]
[1753879969972,0.79,177.53,177.5,3.03]
[1753879970174,0.79,177.52,177.5,3.03]
[1753879970478,5.6339,177.51,177.5,3.03]
[1753879971274,5.6346,177.48,177.47,3.03]
[1753879972173,5.6344,177.49,177.47,3.03]
[1753879972375,2.83165033,177.52,177.47,3.03]
[1753879972574,0.79,177.51,177.47,3.03]
[1753879972772,5.6346,177.48,177.47,3.03]
[1753879975576,2.83165033,177.54,177.47,3.03]
[1753879975774,4.33224417,177.53,177.47,3.03]
[1753879976074,5.6335,177.52,177.49,5.6341]
[1753879976376,5.6335,177.52,177.5,3.03]
[1753879976773,2.83165033,177.56,177.5,3.03]
[1753879976975,2.83165033,177.58,177.5,5.86165033]
[1753879977169,4.33003055,177.57,177.51,8.7934]
[1753879977375,2.83165033,177.58,177.52,3.16]
[1753879977678,5.6328,177.54,177.52,3.16]
[1753879979882,5.6325,177.55,177.52,3.16]
[1753879980076,0.78,177.57,177.52,3.16]
[1753879980379,2.83165033,177.58,177.52,3.16]
[1753879980579,0.78,177.56,177.52,3.16]
[1753879980875,5.6324,177.55,177.52,3.16]
[1753879981082,0.78,177.58,177.53,3.16]
[1753879981282,2.83165033,177.58,177.53,3.16]
[1753879981478,0.78,177.57,177.51,3.16]
[1753879981682,5.6325,177.55,177.52,3.16]
[1753879982780,0.78,177.59,177.52,2.83165033]
[1753879983081,0.78,177.59,177.53,3.16]
[1753879983678,0.78,177.59,177.53,8.7928]
[1753879983875,2.83165033,177.6,177.54,3.16]
[1753879984076,0.78,177.58,177.54,3.16]
[1753879984275,5.6324,177.55,177.54,3.16]
[1753879985176,6.4124,177.55,177.54,3.16]
[1753879985782,5.6324,177.55,177.54,3.16]
[1753879986078,5.6321,177.56,177.54,3.16]
[1753879986284,0.78,177.59,177.54,3.16]
[1753879986787,0.78,177.58,177.54,3.16]
[1753879987583,5.6319,177.57,177.54,3.16]
[1753879987794,3.61165033,177.62,177.54,2.83165033]
[1753879987981,0.78,177.61,177.55,3.16]
[1753879988184,2.83165033,177.58,177.53,3.16]
[1753879988486,0.78,177.56,177.54,3.16]
[1753879988685,5.633,177.54,177.48,2.83165033]
[1753879988880,5.633,177.54,177.53,3.16]
[1753879989286,5.6325,177.55,177.53,3.16]
[1753879989595,2.83165033,177.6,177.53,3.16]
[1753879989783,0.78,177.61,177.55,3.16]
[1753879989984,5.6313,177.59,177.56,3.16]
[1753879990185,0.78,177.61,177.56,3.16]
[1753879990885,2.83165033,177.62,177.56,3.16]
[1753879990886,0.78,177.6,177.56,3.16]
[1753879991086,5.6314,177.58,177.57,3.16]
[1753880000496,5.6312,177.59,177.57,3.16]
[1753880001491,5.6312,177.59,177.57,5.6316]
[1753880001700,2.83165033,177.62,177.58,3.16]
[1753880002188,5.6309,177.6,177.58,3.16]
[1753880002382,4.70694108,177.66,177.59,2.83165033]
[1753880002586,11.83906732,177.67,177.6,3.16]
[1753880002784,5.6304,177.61,177.6,3.16]
[1753880003086,0.78,177.64,177.6,3.16]
[1753880003289,9.93000236,177.63,177.6,5.6306]
[1753880003488,3.61165033,177.65,177.61,3.16]
[1753880003790,4.30051349,177.64,177.61,3.16]
[1753880003996,0.78,177.67,177.61,3.16]
[1753880004193,4.29414163,177.66,177.61,3.16]
[1753880004393,5.6296,177.64,177.61,3.16]
[1753880005092,5.6296,177.64,177.62,3.16]
[1753880005292,5.6298,177.63,177.62,3.16]
[1753880005501,6.4098,177.63,177.62,3.16]
[1753880005793,0.78,177.69,177.62,3.16]
[1753880005994,7.9060817,177.68,177.64,3.16]
[1753880006202,4.29443137,177.67,177.64,3.16]
[1753880006402,9.92353137,177.66,177.64,3.16]
[1753880006701,2.83165033,177.68,177.64,3.16]
[1753880007000,4.29435337,177.67,177.64,3.16]
[1753880007302,5.6294,177.65,177.62,5.6299]
[1753880007605,5.6294,177.65,177.63,3.14]
[1753880009102,5.6295,177.64,177.63,3.14]
[1753880009399,0.77,177.64,177.61,3.14]
[1753880009596,0.77,177.63,177.61,3.14]
[1753880009793,5.6301,177.62,177.59,5.6309]
[1753880009995,5.6301,177.62,177.6,3.14]
[1753880010597,5.63,177.63,177.6,3.14]
[1753880010900,0.77,177.65,177.61,3.14]
[1753880011500,5.6301,177.63,177.61,3.14]
[1753880012096,2.83165033,177.62,177.53,108.45165033]
[1753880012296,4.70694108,177.67,177.54,3.14]
[1753880012492,5.6308,177.61,177.58,3.14]
[1753880012696,2.83165033,177.65,177.58,3.14]
[1753880012892,4.30081689,177.64,177.6,3.14]
[1753880013095,5.47694108,177.68,177.62,5.6301]
[1753880013400,4.30103348,177.67,177.63,3.14]
[1753880013592,4.70694108,177.67,177.65,2.83165033]
[1753880013795,4.70694108,177.7,177.66,3.14]
[1753880013997,4.3001339,177.69,177.68,3.14]
[1753880014201,4.3001339,177.69,177.68,11.59985033]
[1753880014805,10.33274108,177.76,177.72,3.14]
[1753880015003,4.29792217,177.75,177.72,3.14]
[1753880015298,5.47694108,177.77,177.72,5.97165033]
[1753880015299,4.29792217,177.74,177.72,5.97165033]
[1753880015598,0.77,177.76,177.7,2.83165033]
[1753880015803,4.29527337,177.75,177.74,3.14]
[1753880015998,4.29527337,177.75,177.7,2.83165033]
[1753880016202,0.77,177.77,177.71,3.14]
[1753880016405,4.29254791,177.76,177.7,2.83165033]
[1753880016705,5.6265,177.74,177.71,3.14]
[1753880017401,0.77,177.8,177.73,3.14]
[1753880017594,4.28876065,177.79,177.73,3.14]
[1753880017793,9.91386065,177.78,177.73,3.14]
[1753880017997,0.77,177.8,177.73,3.14]
[1753880018198,4.28870585,177.79,177.73,3.14]
[1753880018395,0.77,177.8,177.73,3.14]
[1753880018597,0.77,177.76,177.73,3.14]
[1753880018795,0.77,177.75,177.73,3.14]
[1753880020107,2.83165033,177.81,177.73,3.14]
[1753880020305,4.28483338,177.8,177.75,3.14]
[1753880020499,4.28483338,177.79,177.75,3.14]
[1753880020701,4.28483338,177.78,177.75,3.14]
[1753880020900,3.60165033,177.81,177.75,3.14]
[1753880021105,4.28224226,177.8,177.75,3.14]
[1753880021306,4.28224226,177.79,177.75,3.14]
[1753880021605,0.77,177.8,177.75,3.14]
[1753880021806,0.77,177.78,177.73,3.14]
[1753880022008,5.6263,177.74,177.73,3.14]
[1753880024407,5.627,177.72,177.69,3.14]
[1753880024608,0.77,177.76,177.69,3.14]
[1753880024910,5.6272,177.72,177.69,3.14]
[1753880026306,5.6268,177.73,177.69,3.14]
[1753880026505,3.60165033,177.75,177.69,3.14]
[1753880026807,5.627,177.72,177.69,3.14]
[1753880027914,2.83165033,177.75,177.7,3.14]
[1753880028614,5.6264,177.74,177.7,8.7675]
[1753880028913,2.83165033,177.75,177.71,3.14]
[1753880029214,2.83165033,177.75,177.68,3.14]
[1753880029411,3.61165033,177.71,177.62,2.83165033]
[1753880029608,8.45895033,177.71,177.64,2.83165033]
[1753880029803,4.70694108,177.78,177.64,2.83165033]
[1753880029804,3.61165033,177.73,177.67,3.14]
[1753880031412,5.6274,177.71,177.68,3.14]
[1753880031814,3.61165033,177.73,177.68,3.14]
[1753880032312,5.6272,177.72,177.68,3.14]
[1753880033107,5.6273,177.71,177.68,3.14]
[1753880033914,6.4071,177.72,177.68,3.14]
[1753880035013,5.6271,177.72,177.68,5.628]
[1753880035220,8.45835033,177.73,177.69,3.14]
[1753880035612,2.83165033,177.75,177.7,3.14]